bitfinex/quotes_ETHUSD_20240707
["timestamp","ask_amount","ask_price","bid_price","bid_amount"]
[1720363403389,4.38685764,2971.6,2971.5,0.6]
[1720363404590,2.63512073,2971.6,2971.5,0.6]
[1720363406122,2.63512073,2971.6,2971.5,0.8]
[1720363406496,13.84484156,2971.6,2971.5,0.8]
[1720363406698,13.20855615,2971.6,2971.5,0.8]
[1720363406897,13.25612448,2971.6,2971.5,0.8]
[1720363407096,16.81012448,2971.6,2971.5,0.8]
[1720363407522,3.0,2970.7,2970.0,2.4389]
[1720363407845,0.70133187,2970.3,2970.0,2.4389]
[1720363408345,0.70133187,2970.4,2970.0,2.4389]
[1720363408507,0.70133187,2970.5,2970.0,3.382488]
[1720363408832,0.70133187,2970.4,2970.0,3.382488]
[1720363409401,0.70133187,2970.3,2970.0,3.382488]
[1720363410431,0.70133187,2970.3,2970.0,2.4389]
[1720363410606,0.70133187,2970.2,2970.0,2.4389]
[1720363410814,1.05199781,2970.1,2969.6,2.4389]
[1720363411128,0.70144412,2969.9,2969.6,2.4389]
[1720363411438,1.05199781,2970.1,2969.6,2.4389]
[1720363411439,0.70144412,2970.0,2969.6,2.4389]
[1720363411657,0.70144412,2970.0,2969.6,2.918523]
[1720363413535,0.70144412,2970.1,2969.6,2.918523]
[1720363414532,0.70144412,2970.2,2969.6,2.918523]
[1720363414730,0.70144412,2970.1,2969.6,2.918523]
[1720363414936,0.70144412,2970.2,2969.6,2.918523]
[1720363415235,0.70144412,2970.1,2969.6,2.918523]
[1720363415443,0.70144412,2970.1,2969.6,2.4389]
[1720363415843,0.70144412,2970.1,2969.7,2.283]
[1720363416051,0.70144412,2970.2,2969.7,2.283]
[1720363416247,0.70144412,2970.1,2969.7,2.283]
[1720363416549,0.70144412,2970.1,2969.6,2.4389]
[1720363417025,0.70144412,2970.0,2969.6,2.4389]
[1720363417444,0.70144412,2970.1,2969.6,2.4389]
[1720363418629,0.70144412,2970.1,2969.6,2.68279]
[1720363418818,0.70144412,2970.3,2969.6,2.68279]
[1720363419271,0.70144412,2970.3,2969.7,2.283]
[1720363419423,11.11144412,2970.4,2969.7,2.283]
[1720363419619,8.11144412,2970.4,2969.8,2.31994059]
[1720363419927,7.41,2970.4,2969.9,2.81721406]
[1720363421249,0.70144412,2970.6,2970.1,4.66966]
[1720363421448,8.46199781,2970.7,2970.3,2.3129]
[1720363421449,7.41,2970.7,2970.3,2.3129]
[1720363421649,0.70144412,2970.8,2970.3,2.3129]
[1720363421947,0.70144412,2971.0,2970.4,0.47369476]
[1720363422553,0.70144412,2971.0,2970.6,2.3129]
[1720363422713,0.70144412,2971.3,2970.8,2.283]
[1720363422920,7.41,2971.4,2971.0,2.3561]
[1720363423125,7.41,2971.4,2971.1,2.3129]
[1720363423336,7.41,2971.4,2971.1,3.022143]
[1720363423532,7.41,2971.4,2971.1,5.378163]
[1720363424471,7.41,2971.4,2971.1,2.3129]
[1720363424987,3.0,2971.3,2970.8,2.283]
[1720363425193,3.0,2971.3,2970.6,4.66932]
[1720363425329,3.70144412,2971.3,2970.6,2.3129]
[1720363425769,0.70144412,2971.2,2970.6,2.3129]
[1720363426688,0.70144412,2971.2,2970.6,4.6693]
[1720363426830,3.70144412,2971.3,2970.6,4.6693]
[1720363427028,3.0,2971.3,2970.6,4.6693]
[1720363427883,3.70144412,2971.3,2970.6,4.6693]
[1720363428050,3.0,2971.3,2970.6,4.6693]
[1720363428773,3.0,2971.3,2970.6,2.3129]
[1720363428774,0.70144412,2971.2,2970.6,2.3129]
[1720363429326,0.70144412,2971.2,2970.6,4.66928]
[1720363429660,0.70144412,2971.2,2970.6,2.3129]
[1720363430500,0.70144412,2971.2,2970.6,4.66927]
[1720363430998,0.70144412,2971.2,2970.6,2.3129]
[1720363431295,1.07158853,2971.1,2970.6,2.3129]
[1720363431601,8.11144412,2971.4,2970.8,2.283]
[1720363432008,7.41,2971.4,2970.8,2.283]
[1720363432205,7.41,2971.4,2970.8,2.35031741]
[1720363432582,7.41,2971.4,2971.2,2.283]
[1720363433106,3.0,2971.6,2971.2,2.283]
[1720363435599,3.70144412,2971.6,2971.2,2.283]
[1720363435770,0.70144412,2971.5,2970.8,2.283]
[1720363435964,0.70144412,2971.5,2970.8,4.63926]
[1720363436397,0.70144412,2971.4,2970.8,4.63926]
[1720363436800,0.70144412,2971.5,2970.9,2.35618]
[1720363437683,3.70144412,2971.6,2970.9,2.42343389]
[1720363437887,3.0,2971.6,2971.0,0.47064339]
[1720363438087,3.64144412,2971.7,2971.2,2.2908]
[1720363438576,2.94,2971.7,2971.2,6.92972]
[1720363438981,2.94,2971.7,2971.3,2.35586]
[1720363442707,2.94,2971.7,2971.4,2.35579]
[1720363443885,2.94,2971.7,2971.4,3.29106547]
[1720363444084,2.94,2971.7,2971.5,2.3557]
[1720363444274,2.94,2971.7,2971.5,4.71137]
[1720363445008,2.94,2971.7,2971.5,2.35567]
[1720363447914,2.94,2971.7,2971.6,4.63863]
[1720363448074,2.94,2971.7,2971.6,7.74926]
[1720363448701,2.94,2971.7,2971.6,10.10489]
[1720363451034,2.94,2971.7,2971.6,10.65489]
[1720363454846,2.94,2971.7,2971.6,13.01052]
[1720363456704,2.94,2971.7,2971.6,10.65489]
[1720363459815,2.94,2971.7,2971.6,4.6942]
[1720363461370,2.94,2971.7,2971.6,7.04983]
[1720363462728,2.94,2971.7,2971.6,2.35563]
[1720363463142,2.94,2971.7,2971.5,2.283]
[1720363463353,2.94,2971.7,2971.5,3.0]
[1720363463511,2.94,2971.7,2971.2,4.63893]
[1720363464067,2.94,2971.7,2971.2,2.283]
[1720363464313,2.94,2971.7,2971.2,4.63894]
[1720363465337,2.94,2971.7,2971.2,5.38549634]
[1720363465540,2.94,2971.7,2971.2,4.63894]
[1720363467363,2.94,2971.7,2971.2,2.283]
[1720363468579,3.63910919,2971.7,2971.2,2.283]
[1720363469646,2.94,2971.7,2971.2,2.283]
[1720363470838,3.63910919,2971.7,2971.2,2.283]
[1720363471558,0.69910919,2971.3,2970.5,4.65339]
[1720363471876,0.69910919,2971.4,2970.6,7.63942]
[1720363472084,0.69910919,2971.4,2971.0,2.283]
[1720363472263,8.10910919,2971.5,2971.0,2.283]
[1720363472680,0.69910919,2971.4,2971.0,2.283]
[1720363472984,8.10910919,2971.5,2971.1,0.463918]
[1720363473128,8.10910919,2971.5,2971.0,6.93596]
[1720363473129,0.69910919,2971.5,2971.0,6.93596]
[1720363473829,3.63910919,2971.7,2971.1,2.42332629]
[1720363474056,0.69910919,2971.6,2971.1,2.42332629]
[1720363474271,3.63910919,2971.7,2971.1,2.42332629]
[1720363475126,0.69910919,2971.6,2971.1,2.35602]
[1720363475325,0.69910919,2971.5,2971.1,2.35602]
[1720363476144,0.69910919,2971.6,2971.1,2.35602]
[1720363476442,0.69910919,2971.5,2971.2,0.693592]
[1720363476662,0.69910919,2971.5,2971.1,2.35602]
[1720363477034,0.69910919,2971.6,2971.1,2.35602]
[1720363477577,0.69910919,2971.5,2971.1,2.35602]
[1720363477876,0.69910919,2971.5,2971.2,2.42324637]
[1720363478187,0.69910919,2971.6,2971.3,0.06730402]
[1720363478481,2.94,2971.7,2971.5,2.35571]
[1720363478774,2.94,2971.7,2971.5,4.71137]
[1720363478982,2.94,2971.7,2971.5,2.35566]
[1720363480024,2.94,2971.7,2971.4,2.283]
[1720363480229,3.63910919,2971.7,2971.1,2.35598]
[1720363480429,3.63910919,2971.7,2971.3,2.283]
[1720363480669,0.69910919,2971.6,2971.3,2.283]
[1720363485381,3.98866378,2971.7,2971.3,2.283]
[1720363485382,0.69910919,2971.5,2971.3,2.283]
[1720363485546,2.94,2971.7,2971.3,2.283]
[1720363485756,0.70203531,2971.6,2971.3,4.63882]
[1720363486081,0.70203531,2971.6,2971.4,0.463882]
[1720363486906,3.64203531,2971.7,2971.4,0.463882]
[1720363487168,0.70203531,2971.6,2971.3,6.99463]
[1720363488473,0.70203531,2971.6,2971.3,4.63881]
[1720363488830,3.99315006,2971.7,2971.3,4.63881]
[1720363489036,0.70210004,2971.6,2971.3,4.63881]
[1720363489239,0.70210004,2971.6,2971.3,2.283]
[1720363489553,0.70210004,2971.5,2971.3,2.283]
[1720363489957,0.70210004,2971.4,2971.0,2.2969]
[1720363490168,0.70210004,2971.4,2971.0,4.65298]
[1720363490370,0.70210004,2971.4,2971.1,1.000911]
[1720363490786,0.70210004,2971.5,2971.1,1.000911]
[1720363490975,0.70210004,2971.4,2971.1,1.000911]
[1720363491175,0.70210004,2971.5,2971.1,1.000911]
[1720363491579,0.70210004,2971.6,2971.3,2.35581]
[1720363491780,0.70210004,2971.6,2971.3,5.28233274]
[1720363492184,0.70207077,2971.6,2971.3,5.34963438]
[1720363492484,3.64207077,2971.7,2971.4,2.3677]
[1720363492793,2.94,2971.7,2971.5,4.77859904]
[1720363494593,2.94,2971.7,2971.6,2.35563]
[1720363494897,2.94,2971.7,2971.6,8.2588879]
[1720363495401,2.94,2971.7,2971.6,10.7419879]
[1720363498002,2.94,2971.7,2971.6,2.35563]
[1720363498596,2.94,2971.7,2971.4,2.35572]
[1720363498894,2.94,2971.7,2971.6,2.35563]
[1720363499428,3.64257593,2971.7,2971.3,2.4831]
[1720363499700,2.94,2971.7,2971.3,2.4831]
[1720363499868,4.11221991,2971.7,2971.2,2.283]
[1720363500068,0.70257593,2971.5,2971.0,2.35606]
[1720363500302,0.70252125,2971.5,2971.0,2.35605]
[1720363501298,0.70252125,2971.4,2971.0,2.35604]
[1720363501467,0.70252125,2971.4,2971.1,2.35602]
[1720363501660,0.70252125,2971.3,2971.1,2.35602]
[1720363502492,0.70252125,2971.4,2971.1,2.35602]
[1720363502968,0.70252125,2971.5,2971.4,2.35579]
[1720363503271,0.70252125,2971.6,2971.4,2.35579]
[1720363503677,0.70252125,2971.5,2971.4,2.35579]
[1720363504903,0.70252125,2971.6,2971.4,3.12410531]
[1720363505061,0.70252125,2971.6,2971.4,3.05680433]
[1720363506102,0.70252125,2971.6,2971.5,2.35571]
[1720363506284,2.94,2971.7,2971.6,2.35563]
[1720363506799,3.06790006,2971.7,2971.4,3.05673433]
[1720363507001,0.70325969,2971.6,2971.5,2.35569]
[1720363508064,0.70325969,2971.6,2971.3,2.283]
[1720363508265,0.70343965,2971.4,2971.3,2.283]
[1720363508465,1.05378188,2971.4,2971.1,2.35601]
[1720363508702,0.70342615,2971.3,2971.1,2.35601]
[1720363509105,0.70342615,2971.4,2971.1,2.35601]
[1720363509492,0.86942615,2971.3,2971.1,2.35601]
[1720363510004,1.05471357,2971.5,2971.1,5.39392822]
[1720363511211,1.05471357,2971.5,2971.1,3.03791822]
[1720363511408,1.05471357,2971.4,2971.1,3.03791822]
[1720363511898,1.05471357,2971.5,2971.1,3.03791822]
[1720363512097,1.05471357,2971.5,2971.1,2.35597]
[1720363512418,1.05471357,2971.5,2971.1,4.71195]
[1720363512921,1.05471357,2971.5,2971.3,2.283]
[1720363513238,1.05471357,2971.6,2971.5,2.35571]
[1720363513426,1.29342615,2971.7,2971.6,4.71126]
[1720363513597,1.29342615,2971.7,2971.6,8.26126]
[1720363513782,1.05471357,2972.4,2972.2,7.1314]
[1720363514119,1.05438747,2972.6,2972.3,4.63807]
[1720363514417,0.12785667,2972.5,2972.4,3.060907]
[1720363514634,0.12785667,2972.6,2972.4,3.060907]
[1720363515220,8.46438747,2972.7,2971.9,2.35537]
[1720363515401,1.05438747,2972.6,2972.0,2.35527]
[1720363515614,1.05438747,2972.5,2971.9,4.73237]
[1720363515811,1.05438747,2972.6,2971.9,4.73234]
[1720363516400,2.3089,2972.5,2971.8,4.63846]
[1720363516604,2.3089,2972.5,2971.9,3.999397]
[1720363516805,3.36328747,2972.5,2971.9,3.999397]
[1720363517001,2.3089,2972.5,2971.9,6.354767]
[1720363517649,2.3089,2972.5,2971.7,2.35551]
[1720363517650,3.0,2972.4,2971.7,2.35551]
[1720363517947,1.05438747,2972.3,2971.6,3.0]
[1720363518150,1.05438747,2972.2,2971.5,3.29185356]
[1720363518355,1.05438747,2972.2,2971.7,2.35553]
[1720363518565,1.05438747,2972.3,2971.8,0.535553]
[1720363518850,0.1278355,2972.2,2971.8,0.535553]
[1720363519015,1.18222297,2972.2,2971.5,5.580225]
[1720363519205,1.05438747,2972.1,2971.5,5.580225]
[1720363519405,1.05438747,2972.1,2971.6,2.35561]
[1720363519612,1.05438747,2972.2,2971.6,2.35561]
[1720363519908,0.12787496,2972.1,2971.6,2.35561]
[1720363520106,0.12787496,2972.1,2971.7,0.7935805]
[1720363520107,0.70247936,2972.1,2971.7,0.7935805]
[1720363520621,0.70247936,2972.1,2971.8,2.42275656]
[1720363520823,0.70247936,2972.2,2971.9,4.63836]
[1720363521144,0.70247936,2972.3,2971.9,4.63836]
[1720363521345,0.70247936,2972.3,2972.0,2.35531]
[1720363522030,0.70247936,2972.3,2972.1,2.42251715]
[1720363522339,0.70247936,2972.5,2972.1,2.35523]
[1720363523142,7.41,2972.7,2972.2,2.42243576]
[1720363523352,7.41,2972.7,2972.3,2.283]
[1720363523353,0.12781797,2972.6,2972.3,2.283]
[1720363523652,0.70196612,2972.6,2972.3,4.63804]
[1720363524567,0.70196612,2972.6,2972.4,2.35498]
[1720363524768,0.70196612,2972.7,2972.4,2.35498]
[1720363526262,10.41,2973.0,2972.3,2.283]
[1720363526538,0.70172155,2972.5,2971.9,4.63834]
[1720363526942,0.70172155,2972.4,2971.9,4.63834]
[1720363527142,0.70172155,2972.5,2971.9,4.63834]
[1720363527337,1.05258233,2972.6,2971.9,4.63834]
[1720363527338,0.70172155,2972.6,2972.1,2.35518]
[1720363527547,0.70172155,2972.5,2972.0,2.35523]
[1720363527754,0.70172155,2972.5,2971.9,2.283]
[1720363528285,0.70172155,2972.5,2971.9,2.90428994]
[1720363529100,0.70172155,2972.5,2972.0,2.35527]
[1720363529282,0.70172155,2972.5,2971.6,5.35558]
[1720363529519,4.05258233,2972.6,2971.6,5.35558]
[1720363529520,0.70172155,2972.4,2971.7,4.6385]
[1720363530211,0.70172155,2972.4,2971.2,2.2944]
[1720363530212,3.0,2972.0,2971.2,2.2944]
[1720363530512,3.0,2972.0,2971.1,2.35597]
[1720363530513,0.70172155,2971.8,2971.1,2.35597]
[1720363530715,0.70172155,2971.7,2971.0,0.0337]
[1720363530913,0.70172155,2971.5,2971.0,2.3898]
[1720363531266,0.70172155,2971.5,2971.0,0.0337]
[1720363531464,0.70172155,2971.4,2971.0,0.0337]
[1720363531691,0.70172155,2971.3,2971.0,0.0337]
[1720363532810,0.70107553,2971.3,2971.0,0.0337]
[1720363533103,0.70110435,2971.3,2971.0,0.0337]
[1720363533519,0.87638044,2971.3,2971.0,0.0337]
[1720363533814,0.70110435,2971.3,2971.0,0.0337]
[1720363534117,0.70110435,2971.2,2971.0,0.0337]
[1720363534269,0.70110435,2971.3,2971.0,0.0337]
[1720363534471,0.70110435,2971.5,2971.2,2.283]
[1720363534673,0.70110435,2971.6,2971.2,2.283]
[1720363535013,7.41,2971.7,2971.4,2.35571]
[1720363535218,7.41,2971.7,2971.4,4.71142]
[1720363535372,7.41,2971.7,2971.4,4.77871973]
[1720363535721,0.70110435,2972.0,2971.5,2.3557]
[1720363535928,7.41,2972.1,2971.5,2.3557]
[1720363535929,7.41,2972.1,2971.6,0.06729623]
[1720363536095,8.11110435,2972.1,2971.6,0.06729623]
[1720363536276,8.11110435,2972.1,2971.4,2.35571]
[1720363536477,0.70110435,2971.9,2971.4,2.35571]
[1720363536773,8.46165653,2972.1,2971.4,2.35571]
[1720363537420,8.46165653,2972.1,2971.5,2.4229663]
[1720363537586,7.41,2972.1,2971.5,4.7810663]
[1720363537919,7.41,2972.1,2971.2,4.63891]
[1720363538078,8.46165653,2972.1,2971.4,2.35574]
[1720363538393,8.46165653,2972.1,2971.6,4.63861]
[1720363538580,7.41,2972.1,2971.7,0.06729487]
[1720363538981,7.41,2972.1,2971.7,2.3581]
[1720363539178,7.41,2972.1,2971.8,2.3554]
[1720363539478,7.41,2972.1,2971.9,2.35538]
[1720363540071,1.05165653,2972.5,2971.9,2.35538]
[1720363540929,7.41,2972.6,2972.0,4.70559755]
[1720363541223,7.41,2972.6,2972.0,4.63831]
[1720363541611,8.46165653,2972.6,2972.0,4.63831]
[1720363542271,7.41,2972.6,2972.0,4.63831]
[1720363542480,7.41,2972.6,2972.0,5.34440976]
[1720363543043,8.46165653,2972.6,2972.0,2.283]
[1720363543330,8.46165653,2972.6,2971.6,2.35558]
[1720363543331,1.05165653,2972.4,2971.6,6.99416]
[1720363543743,1.05165653,2972.4,2971.6,2.283]
[1720363543916,1.05165653,2972.4,2971.4,5.35576]
[1720363543917,1.05165653,2972.3,2971.4,5.35576]
[1720363544090,1.05165653,2972.3,2971.4,6.591019]
[1720363544298,1.05165653,2972.3,2971.5,2.35567]
[1720363544840,1.05165653,2972.3,2971.7,2.35554]
[1720363544994,1.05165653,2972.4,2971.7,4.63854]
[1720363545191,0.12781339,2972.3,2971.7,5.102394]
[1720363545419,0.12781339,2972.3,2971.7,2.746854]
[1720363545643,1.17976908,2972.3,2971.7,2.283]
[1720363545934,4.17978817,2972.2,2971.1,2.356]
[1720363546139,3.0,2971.9,2971.0,2.3167]
[1720363546339,1.05195569,2971.8,2971.0,2.3167]
[1720363546555,1.05195569,2971.7,2971.0,4.6728]
[1720363546839,0.7015069,2971.6,2971.0,4.6728]
[1720363547336,0.7015069,2971.6,2971.0,7.02884]
[1720363547499,0.7015069,2971.6,2971.1,0.702884]
[1720363548499,0.7015069,2971.7,2971.4,4.63874]
[1720363548849,7.41,2971.9,2971.4,6.99448]
[1720363549048,7.41,2971.9,2971.6,2.35562]
[1720363549247,0.7015069,2972.0,2971.4,4.63871]
[1720363549412,0.7015069,2971.9,2971.4,4.63871]
[1720363549599,0.7015069,2971.9,2971.4,6.99444]
[1720363549797,0.7015069,2971.9,2971.5,2.3557]
[1720363550547,0.7015069,2971.9,2971.4,4.63871]
[1720363551618,0.70155197,2971.9,2971.4,4.63871]
[1720363551827,0.70155197,2971.9,2971.4,5.338174]
[1720363552018,0.70155197,2971.9,2971.4,7.693914]
[1720363552749,0.70155197,2971.9,2971.4,5.338174]
[1720363553421,0.70155197,2971.7,2971.0,4.67274]
[1720363553626,0.70155197,2971.5,2971.0,2.3167]
[1720363554217,0.70155197,2971.5,2971.0,4.6728]
[1720363554722,0.47538799,2971.5,2971.0,0.0337]
[1720363555036,0.70119851,2971.2,2971.0,0.0337]
[1720363555536,0.70119851,2971.3,2971.0,0.0337]
[1720363559837,0.70119851,2971.4,2971.0,0.0337]
[1720363560157,1.06427664,2971.4,2971.0,0.0337]
[1720363560457,3.0,2971.7,2971.0,0.0337]
[1720363560955,0.70129012,2971.3,2971.0,0.0337]
[1720363561151,2.3274,2971.2,2971.0,0.0337]
[1720363562919,4.05193519,2971.4,2971.0,0.0337]
[1720363564530,1.05193519,2971.4,2971.0,0.0337]
[1720363564725,1.05193519,2971.4,2971.0,0.508305]
[1720363565159,1.05193519,2971.4,2971.0,5.21470811]
[1720363565464,1.05193519,2971.4,2971.2,2.35588]
[1720363565622,1.05193519,2971.4,2971.2,2.42318601]
[1720363565836,1.05193519,2971.4,2971.2,2.35588]
[1720363566240,1.05193519,2971.4,2971.2,3.3330955]
[1720363566475,1.05193519,2971.4,2971.2,0.9772155]
[1720363566658,1.05193519,2971.4,2971.1,2.2689]
[1720363566862,7.41,2971.5,2971.1,4.62491]
[1720363567573,7.41,2971.5,2971.0,5.147365]
[1720363567777,7.41,2971.5,2971.0,7.503415]
[1720363568857,7.41,2971.5,2971.1,2.35601]
[1720363569052,7.41,2971.5,2971.1,3.1063465]
[1720363569608,7.41,2971.5,2971.0,0.508305]
[1720363569753,0.70126112,2971.3,2971.0,0.0337]
[1720363570085,0.70126112,2971.2,2971.0,0.0337]
[1720363570640,0.70126112,2971.1,2971.0,0.0337]
[1720363570980,0.87658075,2971.1,2971.0,0.0337]
[1720363571148,1.22725482,2971.1,2971.0,0.0337]
[1720363571655,0.87687771,2971.1,2971.0,0.0337]
[1720363572052,3.17531963,2971.1,2971.0,0.0337]
[1720363572464,5.74403427,2971.1,2971.0,0.0337]
[1720363572667,5.74096318,2971.1,2971.0,0.0337]
[1720363572867,7.49473323,2971.1,2971.0,0.0337]
[1720363573898,7.49442038,2971.1,2971.0,0.0337]
[1720363574558,18.98702114,2971.1,2971.0,0.0337]
[1720363574761,20.54961078,2971.1,2971.0,0.0337]
[1720363575372,20.54948022,2971.1,2971.0,0.0337]
[1720363575965,21.09948022,2971.1,2971.0,0.0337]
[1720363576161,3.0,2970.1,2969.4,2.2689]
[1720363576502,3.70070112,2970.1,2969.4,2.2689]
[1720363576872,3.0,2969.8,2969.0,4.64067]
[1720363577172,3.0,2969.8,2969.0,2.283]
[1720363580424,3.0,2969.8,2969.0,4.64068]
[1720363582205,3.0,2969.8,2969.0,2.283]
[1720363582607,3.0,2969.5,2969.0,2.283]
[1720363582976,3.0,2969.5,2968.7,2.3579]
[1720363583408,3.0,2969.5,2968.6,2.283]
[1720363583607,3.0,2969.2,2968.6,2.283]
[1720363583777,3.0,2969.2,2968.5,4.75162]
[1720363583977,3.0,2969.2,2968.6,0.475162]
[1720363584815,3.0,2969.2,2968.3,2.35823]
[1720363586273,3.0,2969.2,2968.1,5.0982857]
[1720363586905,3.0,2969.2,2968.2,2.35831]
[1720363587499,2.3268,2969.1,2968.1,7.3812457]
[1720363587707,3.0,2968.7,2968.1,7.3812457]
[1720363587887,3.0,2968.7,2968.1,7.03495]
[1720363588101,3.0,2968.7,2967.8,5.35863]
[1720363588322,3.0,2968.7,2967.9,0.775223]
[1720363589030,3.0,2968.4,2967.5,4.64183]
[1720363589794,3.0,2968.4,2967.6,2.3588]
[1720363590308,3.0,2968.4,2967.5,2.283]
[1720363590510,3.0,2968.4,2967.5,4.64188]
[1720363591327,3.0,2968.1,2967.4,2.35896]
[1720363592796,3.0,2968.1,2967.1,4.6766]
[1720363593108,3.0,2968.1,2967.1,4.7528]
[1720363593333,3.0,2968.1,2967.1,2.3936]
[1720363593548,3.0,2967.7,2966.9,2.3911525]
[1720363593696,2.3268,2968.0,2966.9,0.1081525]
[1720363593697,3.0,2967.4,2966.9,0.1081525]
[1720363595396,2.3268,2968.0,2967.3,2.35897]
[1720363595597,3.0,2967.9,2967.3,2.35897]
[1720363596114,3.0,2967.9,2966.9,0.1081525]
[1720363596115,3.0,2967.6,2967.0,2.35923]
[1720363596449,3.0,2967.6,2967.1,2.3592]
[1720363596754,3.0,2967.6,2967.0,2.35923]
[1720363597254,3.0,2967.6,2967.1,2.35915]
[1720363597642,3.0,2967.6,2966.9,2.4674925]
[1720363597827,3.3,2967.6,2966.9,2.4674925]
[1720363598031,3.3,2967.6,2967.0,2.35928]
[1720363598228,3.0,2967.6,2967.0,2.35928]
[1720363598627,3.0,2967.6,2966.9,2.4674925]
[1720363599235,3.0,2967.6,2967.0,2.35927]
[1720363599538,3.0,2967.9,2967.1,2.35919]
[1720363599733,3.0,2967.6,2967.1,2.35919]
[1720363604178,3.3,2967.6,2966.9,2.4674625]
[1720363604341,2.2871,2967.5,2966.9,0.1081525]
[1720363605657,3.0,2967.3,2966.9,0.1081525]
[1720363606697,3.0,2967.0,2966.9,0.1081525]
[1720363606845,3.3,2967.0,2966.9,0.1081525]
[1720363607069,5.7553,2967.0,2966.9,0.1081525]
[1720363608601,7.41,2967.2,2966.9,0.1081525]
[1720363608893,3.0,2967.4,2966.9,2.4674725]
[1720363609098,3.0,2967.1,2966.9,0.1081525]
[1720363609391,5.4553,2967.1,2966.9,0.1081525]
[1720363609711,0.54553,2967.0,2966.9,0.1081525]
[1720363614855,1.71337942,2967.0,2966.9,0.1081525]
[1720363615097,0.54553,2967.0,2966.9,0.1081525]
[1720363615302,1.71336449,2967.0,2966.9,0.1081525]
[1720363615801,5.26336449,2967.0,2966.9,0.1081525]
[1720363616704,5.26337531,2967.0,2966.9,0.1081525]
[1720363618890,11.24157531,2967.0,2966.9,0.1081525]
[1720363619070,24.38116431,2967.0,2966.9,0.1081525]
[1720363619286,24.38116431,2967.0,2965.3,2.3643]
[1720363619287,3.0,2965.9,2965.3,2.3643]
[1720363619600,3.0,2965.6,2965.0,2.283]
[1720363619809,3.0,2965.6,2964.6,4.6473]
[1720363619994,3.0,2965.6,2964.8,2.36097]
[1720363620199,3.0,2965.6,2964.8,2.46332223]
[1720363620493,3.0,2965.2,2964.9,2.3609]
[1720363620700,3.0,2965.6,2965.1,2.36079]
[1720363620881,3.0,2965.6,2965.0,2.36081]
[1720363621081,7.41,2965.7,2964.6,4.64415]
[1720363621082,3.0,2965.2,2964.6,4.64415]
[1720363621314,3.0,2964.7,2964.0,0.1081525]
[1720363621500,3.0,2964.4,2964.0,0.1081525]
[1720363621700,7.41,2964.8,2964.3,2.283]
[1720363622126,7.41,2964.8,2964.7,0.09219901]
[1720363622342,3.0,2965.1,2964.7,0.09219901]
[1720363622479,3.0,2964.8,2964.7,0.09219901]
[1720363623218,3.0,2964.8,2964.0,4.8750225]
[1720363623382,3.0,2964.8,2964.1,2.283]
[1720363623916,3.0,2964.8,2964.2,0.09219901]
[1720363624079,3.0,2964.5,2964.2,0.09219901]
[1720363624272,10.71,2964.5,2964.2,0.09219901]
[1720363624717,3.0,2964.8,2964.2,0.09219901]
[1720363624718,10.41,2964.8,2964.2,0.09219901]
[1720363624927,7.41,2964.8,2964.4,2.283]
[1720363625136,3.0,2964.6,2964.0,2.3911525]
[1720363625335,3.0,2964.3,2964.0,0.1081525]
[1720363628128,7.41,2964.4,2964.0,0.1081525]
[1720363628129,7.41,2964.4,2964.1,2.283]
[1720363630113,7.41,2964.4,2964.3,2.36143]
[1720363631144,7.41,2964.4,2964.1,2.75828125]
[1720363631439,7.41,2964.4,2964.2,2.3615]
[1720363632142,7.41,2964.4,2964.1,2.283]
[1720363632338,3.0,2964.4,2964.1,2.283]
[1720363633643,3.0,2964.7,2964.1,2.283]
[1720363633937,7.41,2964.8,2964.5,2.283]
[1720363634709,10.41,2964.8,2964.5,2.283]
[1720363634946,10.41,2964.8,2964.1,2.283]
[1720363635109,3.0,2964.5,2964.1,2.283]
[1720363635303,3.0,2964.5,2964.0,0.1081525]
[1720363635525,0.3,2964.4,2964.0,0.1081525]
[1720363636005,3.0,2964.2,2964.0,0.1081525]
[1720363637219,3.0,2964.5,2964.0,0.1081525]
[1720363637438,3.0,2964.5,2964.2,2.283]
[1720363637620,10.41,2964.8,2964.2,2.283]
[1720363637950,7.41,2964.8,2964.6,2.283]
[1720363638312,7.41,2965.3,2964.7,2.36108]
[1720363638523,7.41,2965.3,2964.8,2.36102]
[1720363638720,3.0,2965.6,2965.0,4.6136]
[1720363638721,7.41,2965.6,2965.0,4.6136]
[1720363638934,7.41,2965.6,2965.4,2.283]
[1720363639133,7.41,2966.0,2965.4,2.283]
[1720363639410,7.41,2966.0,2965.4,4.64355]
[1720363639806,7.41,2966.0,2965.8,2.283]
[1720363640620,7.41,2966.0,2965.7,2.4543]
[1720363640834,7.41,2966.0,2965.7,4.8146]
[1720363641040,7.41,2966.0,2965.7,2.4543]
[1720363641910,7.41,2966.0,2965.5,3.054]
[1720363642110,3.0,2965.8,2965.2,2.4543]
[1720363642321,3.0,2965.8,2965.4,4.72096]
[1720363642521,7.41,2966.0,2965.4,4.72096]
[1720363642522,7.41,2966.0,2965.4,2.36048]
[1720363642720,7.41,2966.0,2965.6,2.36039]
[1720363642920,7.41,2966.0,2965.8,2.36023]
[1720363643153,6.53,2966.0,2965.8,5.41423]
[1720363644647,6.53,2966.0,2965.4,2.3605]
[1720363644835,6.53,2966.0,2965.5,2.36046]
[1720363645215,6.53,2966.0,2965.3,2.36058]
[1720363645416,6.53,2966.0,2965.4,2.36054]
[1720363645837,3.0,2965.8,2965.2,7.86896]
[1720363646162,3.0,2965.8,2965.2,5.5083]
[1720363647130,9.53,2966.0,2965.3,2.36063]
[1720363647818,9.53,2966.0,2965.9,0.2]